[Event "*** Titled Tuesday Blitz"]
[Site "Chess.com"]
[Date "2020.11.24"]
[Round "4"]
[White "redbaron8888"]
[Black "DanielNaroditsky"]
[Result "0-1"]
[WhiteElo "2534"]
[BlackElo "3014"]
[TimeControl "180+1"]
[EndTime "10:55:28 PST"]
[Termination "DanielNaroditsky won on time"]

1. e4 {[%clk 0:03:00.9]} 1... c6 {[%clk 0:02:59]} 2. c4 {[%clk 0:03:00.3]} 2...
d5 {[%clk 0:02:59.9]} 3. exd5 {[%clk 0:03:00.5]} 3... cxd5 {[%clk 0:03:00.2]} 4.
cxd5 {[%clk 0:03:01.4]} 4... Nf6 {[%clk 0:03:00.8]} 5. Qa4+ {[%clk 0:03:00.8]}
5... Nbd7 {[%clk 0:02:59.7]} 6. Nc3 {[%clk 0:02:59.6]} 6... g6 {[%clk
0:02:59.6]} 7. d4 {[%clk 0:02:59]} 7... Bg7 {[%clk 0:02:59.8]} 8. Nf3 {[%clk
0:02:58.8]} 8... O-O {[%clk 0:03:00.4]} 9. Be2 {[%clk 0:02:53.8]} 9... Nb6
{[%clk 0:02:59.3]} 10. Qa3 {[%clk 0:02:49.1]} 10... Nbxd5 {[%clk 0:02:57.8]} 11.
O-O {[%clk 0:02:48.5]} 11... b6 {[%clk 0:02:57.7]} 12. Ne5 {[%clk 0:02:45.4]}
12... Bb7 {[%clk 0:02:57.9]} 13. Re1 {[%clk 0:02:42.5]} 13... e6 {[%clk
0:02:56]} 14. Bd2 {[%clk 0:02:37.7]} 14... Nd7 {[%clk 0:02:54]} 15. Bf3 {[%clk
0:02:29.3]} 15... Nxe5 {[%clk 0:02:47.6]} 16. dxe5 {[%clk 0:02:30.2]} 16... Qd7
{[%clk 0:02:46.7]} 17. Nxd5 {[%clk 0:02:25.5]} 17... Bxd5 {[%clk 0:02:45.4]} 18.
Bb4 {[%clk 0:02:21.7]} 18... Rfd8 {[%clk 0:02:36.1]} 19. Be7 {[%clk 0:02:06.6]}
19... Re8 {[%clk 0:02:12]} 20. Bd6 {[%clk 0:02:05.5]} 20... Bxf3 {[%clk
0:02:12.3]} 21. Qxf3 {[%clk 0:02:05]} 21... Rac8 {[%clk 0:02:13.2]} 22. Rac1
{[%clk 0:02:00.5]} 22... Bf8 {[%clk 0:02:12.3]} 23. Bxf8 {[%clk 0:01:56.8]}
23... Rxf8 {[%clk 0:02:13.2]} 24. Qe3 {[%clk 0:01:43.4]} 24... Qd5 {[%clk
0:02:12]} 25. b3 {[%clk 0:01:40.6]} 25... Rfd8 {[%clk 0:02:12.3]} 26. h4 {[%clk
0:01:39.6]} 26... h5 {[%clk 0:02:12]} 27. Qf4 {[%clk 0:01:24.2]} 27... Qa5
{[%clk 0:02:06.9]} 28. a4 {[%clk 0:01:05]} 28... b5 {[%clk 0:02:06.9]} 29. axb5
{[%clk 0:01:00.3]} 29... Qxb5 {[%clk 0:02:07.8]} 30. Rxc8 {[%clk 0:00:57.3]}
30... Rxc8 {[%clk 0:02:08.1]} 31. b4 {[%clk 0:00:53.5]} 31... Rc4 {[%clk
0:02:02.2]} 32. Qf6 {[%clk 0:00:48.2]} 32... Qxb4 {[%clk 0:01:58]} 33. Rd1
{[%clk 0:00:41.6]} 33... Rd4 {[%clk 0:01:57.3]} 34. Rc1 {[%clk 0:00:31.2]} 34...
Qb7 {[%clk 0:01:57.5]} 35. Rc3 {[%clk 0:00:24.6]} 35... a5 {[%clk 0:01:53]} 36.
Rc5 {[%clk 0:00:20.3]} 36... Rd5 {[%clk 0:01:44.5]} 37. Rc3 {[%clk 0:00:17.4]}
37... a4 {[%clk 0:01:44.4]} 38. f3 {[%clk 0:00:15.9]} 38... Qb6+ {[%clk
0:01:27.6]} 39. Kh2 {[%clk 0:00:15.4]} 39... Qd8 {[%clk 0:01:27.1]} 40. Qf4
{[%clk 0:00:14.2]} 40... Rd4 {[%clk 0:01:27]} 41. Qg3 {[%clk 0:00:11]} 41...
Qxh4+ {[%clk 0:01:25.8]} 42. Qxh4 {[%clk 0:00:10]} 42... Rxh4+ {[%clk
0:01:26.7]} 43. Kg3 {[%clk 0:00:10.5]} 43... Rb4 {[%clk 0:01:25.7]} 44. f4
{[%clk 0:00:07.8]} 44... Kg7 {[%clk 0:01:25.9]} 45. Rc7 {[%clk 0:00:06.2]} 45...
a3 {[%clk 0:01:24.6]} 46. Ra7 {[%clk 0:00:05]} 46... Rb3+ {[%clk 0:01:24.5]} 47.
Kh4 {[%clk 0:00:05.4]} 47... Rc3 {[%clk 0:01:24.2]} 48. g3 {[%clk 0:00:05.5]}
48... Rd3 {[%clk 0:01:12.4]} 49. Ra6 {[%clk 0:00:03.4]} 49... Rd2 {[%clk
0:01:12.7]} 50. g4 {[%clk 0:00:02.7]} 50... hxg4 {[%clk 0:01:10.2]} 51. Kxg4
{[%clk 0:00:03.6]} 51... a2 {[%clk 0:01:10.4]} 52. Kg3 {[%clk 0:00:03.6]} 52...
Kf8 {[%clk 0:01:09.7]} 53. Kg4 {[%clk 0:00:03.9]} 53... Ke7 {[%clk 0:01:09.6]}
54. Kg3 {[%clk 0:00:04]} 54... Kd7 {[%clk 0:01:09.8]} 55. Kg4 {[%clk 0:00:04.6]}
55... Kc7 {[%clk 0:01:10.4]} 56. Kg3 {[%clk 0:00:04.6]} 56... Kb7 {[%clk
0:01:10.9]} 57. Ra4 {[%clk 0:00:05.3]} 57... Kc6 {[%clk 0:01:11.3]} 58. Kg4
{[%clk 0:00:05.7]} 58... Kb5 {[%clk 0:01:11.9]} 59. Ra8 {[%clk 0:00:04.7]} 59...
Kb4 {[%clk 0:01:12.4]} 60. Kg5 {[%clk 0:00:04.1]} 60... Kb3 {[%clk 0:01:12.8]}
61. Kf6 {[%clk 0:00:04.2]} 61... Rd1 {[%clk 0:01:13.1]} 62. Kxf7 {[%clk
0:00:03.8]} 62... a1=Q {[%clk 0:01:09.3]} 63. Rxa1 {[%clk 0:00:03.4]} 63... Rxa1
{[%clk 0:01:10.2]} 64. Kxe6 {[%clk 0:00:03.5]} 64... Kc4 {[%clk 0:01:10.7]} 65.
Kf6 {[%clk 0:00:03.3]} 65... Ra6+ {[%clk 0:01:10.9]} 66. e6 {[%clk 0:00:03.3]}
66... Kd5 {[%clk 0:01:11.1]} 67. Kxg6 {[%clk 0:00:02.7]} 67... Kxe6 {[%clk
0:01:11.2]} 0-1

[Event "*** Titled Tuesday Blitz"]
[Site "Chess.com"]
[Date "2020.11.24"]
[Round "4"]
[White "Dinamo3"]
[Black "Semen_Khanin"]
[Result "0-1"]
[WhiteElo "2401"]
[BlackElo "2771"]
[TimeControl "180+1"]
[EndTime "10:55:29 PST"]
[Termination "Semen_Khanin won on time"]

1. e4 {[%clk 0:03:00.9]} 1... c6 {[%clk 0:02:56.6]} 2. Nc3 {[%clk 0:03:00.7]}
2... d5 {[%clk 0:02:56.8]} 3. Nf3 {[%clk 0:03:01.2]} 3... dxe4 {[%clk 0:02:54]}
4. Nxe4 {[%clk 0:03:02.1]} 4... Nf6 {[%clk 0:02:54.1]} 5. Qe2 {[%clk 0:03:01.9]}
5... Bg4 {[%clk 0:02:46.8]} 6. Nxf6+ {[%clk 0:03:00.4]} 6... gxf6 {[%clk
0:02:46.8]} 7. h3 {[%clk 0:03:00]} 7... Bh5 {[%clk 0:02:43.8]} 8. g4 {[%clk
0:03:00.2]} 8... Bg6 {[%clk 0:02:43.6]} 9. d3 {[%clk 0:03:00.6]} 9... Nd7 {[%clk
0:02:43.2]} 10. Bf4 {[%clk 0:03:00.5]} 10... e6 {[%clk 0:02:41]} 11. O-O-O
{[%clk 0:03:00.5]} 11... Qa5 {[%clk 0:02:39.7]} 12. Kb1 {[%clk 0:03:00]} 12...
O-O-O {[%clk 0:02:39.8]} 13. Bg2 {[%clk 0:02:54.1]} 13... h5 {[%clk 0:02:38.1]}
14. Nh4 {[%clk 0:02:47.6]} 14... e5 {[%clk 0:02:23.1]} 15. Bd2 {[%clk 0:02:42]}
15... Bb4 {[%clk 0:02:22.9]} 16. Nxg6 {[%clk 0:02:21.7]} 16... fxg6 {[%clk
0:02:21.5]} 17. Bxb4 {[%clk 0:02:21.9]} 17... Qxb4 {[%clk 0:02:21.5]} 18. gxh5
{[%clk 0:02:22.4]} 18... Rxh5 {[%clk 0:02:20.8]} 19. Bf3 {[%clk 0:02:22.7]}
19... Rh4 {[%clk 0:02:20.2]} 20. Rdg1 {[%clk 0:02:22.6]} 20... g5 {[%clk
0:02:16.6]} 21. Bg4 {[%clk 0:02:22.3]} 21... Kb8 {[%clk 0:02:16.5]} 22. Qf3
{[%clk 0:02:17.2]} 22... Qe7 {[%clk 0:02:16.1]} 23. Re1 {[%clk 0:02:14.3]} 23...
Nb6 {[%clk 0:02:15.9]} 24. Re4 {[%clk 0:02:09.4]} 24... Rhh8 {[%clk 0:02:05.7]}
25. Rhe1 {[%clk 0:02:08.2]} 25... Qd6 {[%clk 0:02:04.1]} 26. Rd1 {[%clk
0:01:48.5]} 26... Nd5 {[%clk 0:01:57.5]} 27. d4 {[%clk 0:01:41.2]} 27... Qb4
{[%clk 0:01:38.9]} 28. a3 {[%clk 0:01:23.9]} 28... Qb6 {[%clk 0:01:32.8]} 29. c4
{[%clk 0:01:21.5]} 29... Nf4 {[%clk 0:01:31.9]} 30. dxe5 {[%clk 0:01:21.1]}
30... fxe5 {[%clk 0:01:31.2]} 31. Rxe5 {[%clk 0:01:17.4]} 31... Rxd1+ {[%clk
0:01:28.1]} 32. Qxd1 {[%clk 0:01:18.3]} 32... Rd8 {[%clk 0:01:27.9]} 33. Qc2
{[%clk 0:01:12.1]} 33... Qc7 {[%clk 0:00:42.7]} 34. Rxg5 {[%clk 0:01:02.2]}
34... Qe7 {[%clk 0:00:43.1]} 35. Rf5 {[%clk 0:00:32]} 35... Qe1+ {[%clk
0:00:42.9]} 36. Ka2 {[%clk 0:00:32.2]} 36... Nd3 {[%clk 0:00:42.6]} 37. Rf7
{[%clk 0:00:08]} 37... a5 {[%clk 0:00:32.4]} 38. Bf5 {[%clk 0:00:01.6]} 38...
Nc1+ {[%clk 0:00:23.2]} 39. Kb1 {[%clk 0:00:02.1]} 39... Rd1 {[%clk 0:00:13.9]}
0-1

[Event "*** Titled Tuesday Blitz"]
[Site "Chess.com"]
[Date "2020.11.24"]
[Round "4"]
[White "LaPorfia"]
[Black "maxip32"]
[Result "0-1"]
[WhiteElo "2297"]
[BlackElo "2483"]
[TimeControl "180+1"]
[EndTime "10:55:29 PST"]
[Termination "maxip32 won by resignation"]

1. d4 {[%clk 0:03:00.9]} 1... Nf6 {[%clk 0:02:59.6]} 2. Nf3 {[%clk 0:03:00.1]}
2... g6 {[%clk 0:02:59.9]} 3. Nc3 {[%clk 0:02:59]} 3... d5 {[%clk 0:02:58.5]} 4.
Bf4 {[%clk 0:02:56.1]} 4... Bg7 {[%clk 0:02:56.9]} 5. e3 {[%clk 0:02:54.7]} 5...
O-O {[%clk 0:02:56]} 6. Ne5 {[%clk 0:02:49.2]} 6... c6 {[%clk 0:02:50.1]} 7. Be2
{[%clk 0:02:44.6]} 7... Nbd7 {[%clk 0:02:47.8]} 8. h4 {[%clk 0:02:43.4]} 8... h6
{[%clk 0:02:47.6]} 9. g4 {[%clk 0:02:18]} 9... Nxe5 {[%clk 0:02:47.1]} 10. Bxe5
{[%clk 0:02:17.3]} 10... Ne4 {[%clk 0:02:45.6]} 11. Bxg7 {[%clk 0:02:09.2]}
11... Nxc3 {[%clk 0:02:31.5]} 12. bxc3 {[%clk 0:02:10.1]} 12... Kxg7 {[%clk
0:02:31.9]} 13. h5 {[%clk 0:02:02.1]} 13... g5 {[%clk 0:02:26.2]} 14. f4 {[%clk
0:02:01.8]} 14... e6 {[%clk 0:02:21.5]} 15. Qd2 {[%clk 0:01:56]} 15... b5 {[%clk
0:02:18.9]} 16. Bd3 {[%clk 0:01:41.5]} 16... f6 {[%clk 0:02:05.5]} 17. Bg6
{[%clk 0:01:03.7]} 17... e5 {[%clk 0:01:51.8]} 18. dxe5 {[%clk 0:00:52.7]} 18...
fxe5 {[%clk 0:01:51.7]} 19. fxe5 {[%clk 0:00:53]} 19... Qe7 {[%clk 0:01:51.5]}
20. Qd4 {[%clk 0:00:49.7]} 20... Be6 {[%clk 0:01:51.1]} 21. Rg1 {[%clk
0:00:33.2]} 21... Rf3 {[%clk 0:01:40.7]} 22. Ke2 {[%clk 0:00:29.5]} 22... Raf8
{[%clk 0:01:39.5]} 23. Raf1 {[%clk 0:00:28.6]} 23... c5 {[%clk 0:01:36.1]} 24.
Qd3 {[%clk 0:00:26.6]} 24... Rxf1 {[%clk 0:01:35.7]} 25. Rxf1 {[%clk 0:00:26.6]}
25... Bxg4+ {[%clk 0:01:35.7]} 26. Ke1 {[%clk 0:00:25.3]} 26... Qxe5 {[%clk
0:01:13.6]} 27. Rxf8 {[%clk 0:00:24.6]} 27... Kxf8 {[%clk 0:01:14.5]} 28. Qf1+
{[%clk 0:00:22.9]} 28... Ke7 {[%clk 0:01:14.5]} 29. Qf7+ {[%clk 0:00:22.4]}
29... Kd6 {[%clk 0:01:03.9]} 30. Kd2 {[%clk 0:00:20.2]} 30... Qe7 {[%clk
0:00:54.9]} 31. Qg8 {[%clk 0:00:15.8]} 31... Kc6 {[%clk 0:00:47.1]} 32. Qa8+
{[%clk 0:00:15]} 32... Kb6 {[%clk 0:00:46.3]} 33. Qb8+ {[%clk 0:00:14.9]} 33...
Ka5 {[%clk 0:00:43]} 34. Kc1 {[%clk 0:00:13.4]} 34... Qxe3+ {[%clk 0:00:42.1]}
35. Kb2 {[%clk 0:00:13.6]} 35... Qe7 {[%clk 0:00:41.6]} 36. Qh8 {[%clk
0:00:10.5]} 36... d4 {[%clk 0:00:34.7]} 37. cxd4 {[%clk 0:00:10.1]} 37... cxd4
{[%clk 0:00:35.6]} 38. Qxd4 {[%clk 0:00:09.7]} 38... Qb4+ {[%clk 0:00:34.1]} 39.
Qxb4+ {[%clk 0:00:09.8]} 39... Kxb4 {[%clk 0:00:35]} 40. c3+ {[%clk 0:00:09.5]}
40... Kc5 {[%clk 0:00:35.4]} 41. Kc1 {[%clk 0:00:08.1]} 41... Bf3 {[%clk
0:00:32.2]} 42. Kd2 {[%clk 0:00:08.6]} 42... g4 {[%clk 0:00:31.7]} 43. Ke3
{[%clk 0:00:08.2]} 43... Kc4 {[%clk 0:00:31.9]} 44. Kd2 {[%clk 0:00:06.4]} 44...
g3 {[%clk 0:00:31.9]} 45. Ke3 {[%clk 0:00:06.7]} 45... g2 {[%clk 0:00:31.7]} 46.
Bd3+ {[%clk 0:00:06.3]} 46... Kxc3 {[%clk 0:00:26.2]} 0-1

[Event "*** Titled Tuesday Blitz"]
[Site "Chess.com"]
[Date "2020.11.24"]
[Round "4"]
[White "kot60"]
[Black "albi1999"]
[Result "1-0"]
[WhiteElo "2471"]
[BlackElo "2596"]
[TimeControl "180+1"]
[EndTime "10:55:31 PST"]
[Termination "kot60 won by resignation"]

1. e4 {[%clk 0:03:00.9]} 1... e5 {[%clk 0:02:58.7]} 2. Nc3 {[%clk 0:03:00.2]}
2... Nf6 {[%clk 0:02:58.2]} 3. f4 {[%clk 0:03:00.1]} 3... d5 {[%clk 0:02:57.7]}
4. fxe5 {[%clk 0:02:59.9]} 4... Nxe4 {[%clk 0:02:56.6]} 5. Qf3 {[%clk
0:03:00.3]} 5... f5 {[%clk 0:02:50.8]} 6. d3 {[%clk 0:02:59.2]} 6... Nxc3 {[%clk
0:02:49.7]} 7. bxc3 {[%clk 0:02:59.7]} 7... c5 {[%clk 0:02:44.6]} 8. Qg3 {[%clk
0:02:41]} 8... Nc6 {[%clk 0:02:42.1]} 9. Be2 {[%clk 0:02:31]} 9... d4 {[%clk
0:02:25.7]} 10. Bf3 {[%clk 0:02:14.2]} 10... dxc3 {[%clk 0:02:19.1]} 11. Bxc6+
{[%clk 0:02:13.2]} 11... bxc6 {[%clk 0:02:20]} 12. Ne2 {[%clk 0:02:11.4]} 12...
Be6 {[%clk 0:02:17.6]} 13. O-O {[%clk 0:02:10]} 13... Qd7 {[%clk 0:02:12.9]} 14.
Be3 {[%clk 0:02:04.7]} 14... Rg8 {[%clk 0:02:08.3]} 15. Nxc3 {[%clk 0:01:46.5]}
15... g5 {[%clk 0:02:08.1]} 16. Qf2 {[%clk 0:01:45]} 16... f4 {[%clk 0:01:39]}
17. Bxc5 {[%clk 0:01:43.9]} 17... Kf7 {[%clk 0:01:28.2]} 18. Ne4 {[%clk
0:01:31.6]} 18... Rg6 {[%clk 0:01:11.3]} 19. a4 {[%clk 0:01:08.1]} 19... Kg7
{[%clk 0:01:03]} 20. Rab1 {[%clk 0:01:03.1]} 20... Be7 {[%clk 0:00:42]} 21. Bxe7
{[%clk 0:00:52.5]} 21... Qxe7 {[%clk 0:00:42.9]} 22. Nd6 {[%clk 0:00:52.4]}
22... Rd8 {[%clk 0:00:33.8]} 23. Rb7 {[%clk 0:00:47.7]} 23... Rd7 {[%clk
0:00:34]} 24. Qxa7 {[%clk 0:00:47.3]} 24... Rxb7 {[%clk 0:00:30.5]} 25. Qxb7
{[%clk 0:00:47.1]} 25... Qxb7 {[%clk 0:00:30.4]} 26. Nxb7 {[%clk 0:00:47.2]}
26... Bf5 {[%clk 0:00:24.5]} 27. Nd6 {[%clk 0:00:44.4]} 27... Bg4 {[%clk
0:00:14.2]} 28. a5 {[%clk 0:00:28.1]} 28... Re6 {[%clk 0:00:13.3]} 29. a6 {[%clk
0:00:27.6]} 29... Rxe5 {[%clk 0:00:13.5]} 30. Ra1 {[%clk 0:00:27.5]} 30... f3
{[%clk 0:00:04.9]} 31. a7 {[%clk 0:00:24.2]} 31... Re2 {[%clk 0:00:04.8]} 32.
gxf3 {[%clk 0:00:22.5]} 32... Bxf3 {[%clk 0:00:05.7]} 33. a8=Q {[%clk
0:00:21.4]} 33... Rg2+ {[%clk 0:00:05.9]} 34. Kf1 {[%clk 0:00:21.6]} 34... Rxh2
{[%clk 0:00:06.4]} 35. Nf5+ {[%clk 0:00:20.3]} 35... Kg6 {[%clk 0:00:06.4]} 36.
Ne7+ {[%clk 0:00:17.9]} 36... Kh5 {[%clk 0:00:06.6]} 37. Qe8+ {[%clk 0:00:17.2]}
37... Kh4 {[%clk 0:00:06.9]} 38. Qf7 {[%clk 0:00:15.8]} 38... g4 {[%clk
0:00:04.4]} 39. Qxh7+ {[%clk 0:00:13.6]} 39... Kg3 {[%clk 0:00:04.1]} 40. Nf5+
{[%clk 0:00:13.2]} 40... Kf4 {[%clk 0:00:03.6]} 41. Qxh2+ {[%clk 0:00:13.6]}
41... Kxf5 {[%clk 0:00:04.5]} 42. Qg3 {[%clk 0:00:13.8]} 1-0

[Event "*** Titled Tuesday Blitz"]
[Site "Chess.com"]
[Date "2020.11.24"]
[Round "4"]
[White "elamier"]
[Black "zverr1"]
[Result "1-0"]
[WhiteElo "2363"]
[BlackElo "2508"]
[TimeControl "180+1"]
[EndTime "10:55:34 PST"]
[Termination "elamier won by checkmate"]

1. e4 {[%clk 0:03:00.9]} 1... e6 {[%clk 0:02:59.9]} 2. d4 {[%clk 0:02:59.7]}
2... d5 {[%clk 0:03:00.8]} 3. Nd2 {[%clk 0:03:00.1]} 3... c5 {[%clk 0:02:57.7]}
4. exd5 {[%clk 0:02:56.9]} 4... exd5 {[%clk 0:02:58.6]} 5. Bb5+ {[%clk
0:02:55.2]} 5... Nc6 {[%clk 0:02:58.1]} 6. Qe2+ {[%clk 0:02:54.3]} 6... Be7
{[%clk 0:02:51.7]} 7. dxc5 {[%clk 0:02:54.1]} 7... Nf6 {[%clk 0:02:51.6]} 8.
Ngf3 {[%clk 0:02:51.9]} 8... O-O {[%clk 0:02:28.4]} 9. Nb3 {[%clk 0:02:50.5]}
9... Ne4 {[%clk 0:02:25.2]} 10. O-O {[%clk 0:02:42.7]} 10... Re8 {[%clk
0:02:23.4]} 11. Be3 {[%clk 0:02:37.6]} 11... Nxc5 {[%clk 0:02:20.8]} 12. Rfd1
{[%clk 0:02:33.8]} 12... Ne4 {[%clk 0:02:11.6]} 13. c4 {[%clk 0:02:28.7]} 13...
a6 {[%clk 0:02:08.1]} 14. cxd5 {[%clk 0:02:18.9]} 14... axb5 {[%clk 0:02:07.5]}
15. dxc6 {[%clk 0:02:18.6]} 15... Qc7 {[%clk 0:02:07.9]} 16. Qxb5 {[%clk
0:02:01.1]} 16... bxc6 {[%clk 0:02:02.2]} 17. Qh5 {[%clk 0:01:49.5]} 17... Be6
{[%clk 0:01:49.8]} 18. Nbd4 {[%clk 0:01:42.8]} 18... Bxa2 {[%clk 0:01:44.2]} 19.
Rac1 {[%clk 0:01:38.5]} 19... Nf6 {[%clk 0:01:34.6]} 20. Qh4 {[%clk 0:01:35]}
20... Bd5 {[%clk 0:01:29.5]} 21. Nf5 {[%clk 0:01:28.7]} 21... Bf8 {[%clk
0:01:22.2]} 22. Bg5 {[%clk 0:01:23.5]} 22... Bxf3 {[%clk 0:01:17.9]} 23. Bxf6
{[%clk 0:01:02.2]} 23... Bxd1 {[%clk 0:01:03.5]} 24. Rxd1 {[%clk 0:01:00.9]}
24... Qd7 {[%clk 0:00:56.6]} 25. Nh6+ {[%clk 0:00:35.9]} 25... Kh8 {[%clk
0:00:45.2]} 26. Bd4 {[%clk 0:00:35]} 26... c5 {[%clk 0:00:31.8]} 27. Qh5 {[%clk
0:00:18.2]} 27... Qxd4 {[%clk 0:00:21.1]} 28. Nxf7+ {[%clk 0:00:17.5]} 28... Kg8
{[%clk 0:00:21.7]} 29. Ng5 {[%clk 0:00:15.9]} 29... Qd3 {[%clk 0:00:14.7]} 30.
h3 {[%clk 0:00:09.8]} 30... Qg6 {[%clk 0:00:14.2]} 31. Qg4 {[%clk 0:00:09.1]}
31... Rad8 {[%clk 0:00:03.6]} 32. Qc4+ {[%clk 0:00:09]} 32... Kh8 {[%clk
0:00:04]} 33. Rxd8 {[%clk 0:00:07.5]} 33... Qxg5 {[%clk 0:00:02.4]} 34. Rxe8
{[%clk 0:00:06.3]} 34... Qf6 {[%clk 0:00:02.9]} 35. Qxc5 {[%clk 0:00:04.9]}
35... Qxb2 {[%clk 0:00:03.2]} 36. Qxf8# {[%clk 0:00:04.3]} 1-0

[Event "*** Titled Tuesday Blitz"]
[Site "Chess.com"]
[Date "2020.11.24"]
[Round "4"]
[White "PattyCastillo"]
[Black "tteshan"]
[Result "0-1"]
[WhiteElo "2049"]
[BlackElo "2379"]
[TimeControl "180+1"]
[EndTime "10:55:34 PST"]
[Termination "tteshan won by resignation"]

1. d4 {[%clk 0:03:00.9]} 1... d5 {[%clk 0:03:00]} 2. Nf3 {[%clk 0:03:00.2]} 2...
Nf6 {[%clk 0:02:59.8]} 3. e3 {[%clk 0:02:57.9]} 3... c5 {[%clk 0:02:58.3]} 4.
Bd3 {[%clk 0:02:55]} 4... Nc6 {[%clk 0:02:55.1]} 5. b3 {[%clk 0:02:53.7]} 5...
Bg4 {[%clk 0:02:51]} 6. Bb2 {[%clk 0:02:53.5]} 6... e6 {[%clk 0:02:49.6]} 7.
Nbd2 {[%clk 0:02:52.7]} 7... Bd6 {[%clk 0:02:48.1]} 8. O-O {[%clk 0:02:52.4]}
8... O-O {[%clk 0:02:47.3]} 9. Qb1 {[%clk 0:02:51.4]} 9... b6 {[%clk 0:02:24]}
10. a3 {[%clk 0:02:50.8]} 10... Rc8 {[%clk 0:02:22.2]} 11. c4 {[%clk 0:02:50.1]}
11... cxd4 {[%clk 0:02:20.1]} 12. exd4 {[%clk 0:02:49.7]} 12... dxc4 {[%clk
0:02:18.8]} 13. bxc4 {[%clk 0:02:45.3]} 13... Bb8 {[%clk 0:02:08.9]} 14. Ne5
{[%clk 0:02:39.3]} 14... Bh5 {[%clk 0:01:58.1]} 15. Nxc6 {[%clk 0:02:37.3]}
15... Rxc6 {[%clk 0:01:58.4]} 16. Ne4 {[%clk 0:02:30.2]} 16... Bg6 {[%clk
0:01:51.2]} 17. Nxf6+ {[%clk 0:02:28.2]} 17... gxf6 {[%clk 0:01:33.5]} 18. Rd1
{[%clk 0:01:52.8]} 18... Rxc4 {[%clk 0:01:28.2]} 19. d5 {[%clk 0:01:22.2]} 19...
exd5 {[%clk 0:01:11.7]} 20. Bxg6 {[%clk 0:01:18.3]} 20... fxg6 {[%clk
0:01:09.7]} 21. Qd3 {[%clk 0:01:18.2]} 21... Rc5 {[%clk 0:01:02.2]} 22. Rac1
{[%clk 0:01:16.5]} 22... Rxc1 {[%clk 0:00:53.9]} 23. Rxc1 {[%clk 0:01:10.9]}
23... Qd6 {[%clk 0:00:51.9]} 24. g3 {[%clk 0:01:09.6]} 24... Re8 {[%clk
0:00:43.9]} 25. Rd1 {[%clk 0:01:07]} 25... Rd8 {[%clk 0:00:42.7]} 26. Qf3 {[%clk
0:00:58.8]} 26... Kf7 {[%clk 0:00:37.5]} 27. h4 {[%clk 0:00:46.7]} 27... Qe6
{[%clk 0:00:35.9]} 28. Kg2 {[%clk 0:00:37.8]} 28... Be5 {[%clk 0:00:31.5]} 29.
Bc1 {[%clk 0:00:32.5]} 29... d4 {[%clk 0:00:28.2]} 30. h5 {[%clk 0:00:29.4]}
30... Qd5 {[%clk 0:00:27.3]} 31. hxg6+ {[%clk 0:00:28.6]} 31... hxg6 {[%clk
0:00:27.7]} 32. Qxd5+ {[%clk 0:00:20.5]} 32... Rxd5 {[%clk 0:00:28.6]} 33. Kf3
{[%clk 0:00:20.8]} 33... Ke6 {[%clk 0:00:26.6]} 34. g4 {[%clk 0:00:20.1]} 34...
Bd6 {[%clk 0:00:23.1]} 35. Bf4 {[%clk 0:00:17.2]} 35... Bxf4 {[%clk 0:00:21.7]}
36. Kxf4 {[%clk 0:00:17.6]} 36... b5 {[%clk 0:00:18.9]} 37. Ke4 {[%clk
0:00:17.3]} 37... Re5+ {[%clk 0:00:17.8]} 38. Kf4 {[%clk 0:00:16.5]} 38... g5+
{[%clk 0:00:17.4]} 39. Kf3 {[%clk 0:00:16.3]} 39... Kd5 {[%clk 0:00:18]} 40. Rd3
{[%clk 0:00:15.9]} 40... Kc4 {[%clk 0:00:18.2]} 41. Rd1 {[%clk 0:00:13]} 41...
d3 {[%clk 0:00:17.3]} 42. Rc1+ {[%clk 0:00:08.3]} 42... Kd4 {[%clk 0:00:17.7]}
43. Rd1 {[%clk 0:00:08.3]} 43... Kc3 {[%clk 0:00:18]} 0-1

[Event "*** Titled Tuesday Blitz"]
[Site "Chess.com"]
[Date "2020.11.24"]
[Round "4"]
[White "Tenamu"]
[Black "shnitez"]
[Result "0-1"]
[WhiteElo "2313"]
[BlackElo "2496"]
[TimeControl "180+1"]
[EndTime "10:55:37 PST"]
[Termination "shnitez won by resignation"]

1. d4 {[%clk 0:03:00.9]} 1... Nf6 {[%clk 0:02:59.7]} 2. Nc3 {[%clk 0:03:00.7]}
2... d5 {[%clk 0:02:59]} 3. Bf4 {[%clk 0:03:00.6]} 3... a6 {[%clk 0:02:56.3]} 4.
e3 {[%clk 0:03:00.9]} 4... e6 {[%clk 0:02:52.9]} 5. a3 {[%clk 0:03:00.3]} 5...
c5 {[%clk 0:02:52.2]} 6. Nf3 {[%clk 0:02:59.7]} 6... Nc6 {[%clk 0:02:51.6]} 7.
Be2 {[%clk 0:02:58.2]} 7... Bd6 {[%clk 0:02:48.6]} 8. dxc5 {[%clk 0:02:57.8]}
8... Bxc5 {[%clk 0:02:46.5]} 9. O-O {[%clk 0:02:58.2]} 9... O-O {[%clk 0:02:46]}
10. Bg3 {[%clk 0:02:54.3]} 10... Qe7 {[%clk 0:02:44.3]} 11. b4 {[%clk
0:02:53.2]} 11... Ba7 {[%clk 0:02:40.2]} 12. Nd4 {[%clk 0:02:49.6]} 12... e5
{[%clk 0:02:33.3]} 13. Nf3 {[%clk 0:02:40.4]} 13... Rd8 {[%clk 0:02:31]} 14. Re1
{[%clk 0:02:36.2]} 14... Bf5 {[%clk 0:02:24.1]} 15. Nh4 {[%clk 0:02:27.7]} 15...
Be6 {[%clk 0:02:20.6]} 16. Bf1 {[%clk 0:02:23.1]} 16... Rac8 {[%clk 0:01:54.8]}
17. Nb1 {[%clk 0:02:11]} 17... e4 {[%clk 0:01:42.7]} 18. c3 {[%clk 0:02:06.8]}
18... g5 {[%clk 0:01:41.9]} 19. Nd2 {[%clk 0:01:56.7]} 19... Bb8 {[%clk
0:01:35.2]} 20. f4 {[%clk 0:01:50.8]} 20... h6 {[%clk 0:01:05.8]} 21. Nb3 {[%clk
0:01:30.1]} 21... Bg4 {[%clk 0:00:53.2]} 22. Be2 {[%clk 0:01:26]} 22... Bxe2
{[%clk 0:00:43.5]} 23. Qxe2 {[%clk 0:01:26.9]} 23... gxh4 {[%clk 0:00:37.1]} 24.
Bxh4 {[%clk 0:01:27.8]} 24... Qe6 {[%clk 0:00:33.6]} 25. f5 {[%clk 0:01:26.3]}
25... Qe5 {[%clk 0:00:33]} 26. g3 {[%clk 0:01:24.4]} 26... Ne7 {[%clk
0:00:23.8]} 27. Nd4 {[%clk 0:01:22.2]} 27... Rxc3 {[%clk 0:00:20.7]} 28. g4
{[%clk 0:01:20]} 28... Rxe3 {[%clk 0:00:17.4]} 29. Qxe3 {[%clk 0:01:14.7]} 29...
Qxh2+ {[%clk 0:00:17.2]} 30. Kf1 {[%clk 0:01:14.8]} 30... Qxh4 {[%clk
0:00:17.3]} 31. Ke2 {[%clk 0:00:59.9]} 31... Nxg4 {[%clk 0:00:15]} 32. Qg1
{[%clk 0:00:59.8]} 32... h5 {[%clk 0:00:13.1]} 33. Qg2 {[%clk 0:00:57.1]} 33...
Be5 {[%clk 0:00:12.4]} 34. Rad1 {[%clk 0:00:52.9]} 34... Bxd4 {[%clk 0:00:12.4]}
35. Rxd4 {[%clk 0:00:52]} 35... Nxf5 {[%clk 0:00:12.8]} 36. Rd2 {[%clk
0:00:45.9]} 36... Kf8 {[%clk 0:00:10.4]} 37. Rc1 {[%clk 0:00:25]} 37... d4
{[%clk 0:00:06.7]} 38. Rc3 {[%clk 0:00:18]} 38... dxc3 {[%clk 0:00:05.8]} 39.
Rxd8+ {[%clk 0:00:17.6]} 39... Qxd8 {[%clk 0:00:06.7]} 40. Qxe4 {[%clk 0:00:14]}
40... Ng3+ {[%clk 0:00:05.9]} 41. Kf3 {[%clk 0:00:13.8]} 41... Nxe4 {[%clk
0:00:06.8]} 42. Kxe4 {[%clk 0:00:14.7]} 42... c2 {[%clk 0:00:06.8]} 43. Kf5
{[%clk 0:00:13.8]} 43... c1=Q {[%clk 0:00:07.7]} 44. Ke4 {[%clk 0:00:13.8]}
44... Qe3+ {[%clk 0:00:07.4]} 0-1